[Event "*** Titled Tuesday Blitz"]
[Site "Chess.com"]
[Date "2020.11.24"]
[Round "6"]
[White "oykuince"]
[Black "kinga2008"]
[Result "0-1"]
[WhiteElo "1960"]
[BlackElo "2179"]
[TimeControl "180+1"]
[EndTime "11:23:42 PST"]
[Termination "kinga2008 won on time"]

1. e4 {[%clk 0:03:00.9]} 1... c6 {[%clk 0:03:00.9]} 2. d4 {[%clk 0:03:00]} 2...
d5 {[%clk 0:03:00.1]} 3. Nc3 {[%clk 0:02:58.7]} 3... Nf6 {[%clk 0:02:59.4]} 4.
e5 {[%clk 0:02:52.9]} 4... Ne4 {[%clk 0:02:59.1]} 5. Nxe4 {[%clk 0:02:51.5]}
5... dxe4 {[%clk 0:03:00]} 6. c3 {[%clk 0:02:50.6]} 6... c5 {[%clk 0:02:59.2]}
7. Bb5+ {[%clk 0:02:40]} 7... Bd7 {[%clk 0:02:53.5]} 8. Bxd7+ {[%clk 0:02:39.4]}
8... Nxd7 {[%clk 0:02:52.7]} 9. Ne2 {[%clk 0:02:38.2]} 9... e6 {[%clk
0:02:49.2]} 10. Ng3 {[%clk 0:02:28.4]} 10... cxd4 {[%clk 0:02:36.3]} 11. cxd4
{[%clk 0:02:25.9]} 11... Bb4+ {[%clk 0:02:24.7]} 12. Bd2 {[%clk 0:02:23.5]}
12... Qb6 {[%clk 0:02:20.8]} 13. Bxb4 {[%clk 0:01:53.6]} 13... Qxb4+ {[%clk
0:02:16.8]} 14. Qd2 {[%clk 0:01:54.2]} 14... Qxd2+ {[%clk 0:02:14.8]} 15. Kxd2
{[%clk 0:01:54.2]} 15... O-O-O {[%clk 0:02:14.7]} 16. Ke3 {[%clk 0:01:50.3]}
16... Nb6 {[%clk 0:02:04.8]} 17. Nxe4 {[%clk 0:01:43.2]} 17... Nc4+ {[%clk
0:02:02.4]} 18. Kf3 {[%clk 0:01:20]} 18... Rxd4 {[%clk 0:01:58.4]} 19. Rac1
{[%clk 0:01:12.6]} 19... Kb8 {[%clk 0:01:55.5]} 20. Rcd1 {[%clk 0:00:44.2]}
20... Nxe5+ {[%clk 0:01:36.3]} 21. Kf4 {[%clk 0:00:37.5]} 21... Nd3+ {[%clk
0:01:28.3]} 22. Ke3 {[%clk 0:00:37]} 22... Rhd8 {[%clk 0:01:19]} 23. Nc5 {[%clk
0:00:23.2]} 23... e5 {[%clk 0:00:35]} 24. Rxd3 {[%clk 0:00:17.6]} 24... f5
{[%clk 0:00:34.1]} 25. Rxd4 {[%clk 0:00:16.7]} 25... Rxd4 {[%clk 0:00:33.2]} 26.
Ne6 {[%clk 0:00:16.7]} 26... Re4+ {[%clk 0:00:32.2]} 27. Kd3 {[%clk 0:00:16.2]}
27... g6 {[%clk 0:00:21.7]} 28. Ng5 {[%clk 0:00:15.3]} 28... Rg4 {[%clk
0:00:17.3]} 29. Nxh7 {[%clk 0:00:15.2]} 29... Rxg2 {[%clk 0:00:17.1]} 30. Ke2
{[%clk 0:00:14.5]} 30... Rg4 {[%clk 0:00:14.9]} 31. Nf6 {[%clk 0:00:14.3]} 31...
Rc4 {[%clk 0:00:13.7]} 32. Rd1 {[%clk 0:00:13.4]} 32... Kc7 {[%clk 0:00:12.7]}
33. Nd5+ {[%clk 0:00:12.8]} 33... Kc6 {[%clk 0:00:12.2]} 34. Ne7+ {[%clk
0:00:12.9]} 34... Kb5 {[%clk 0:00:11.6]} 35. Nxg6 {[%clk 0:00:13.5]} 35... Rc2+
{[%clk 0:00:10.9]} 36. Rd2 {[%clk 0:00:13.7]} 36... Rc4 {[%clk 0:00:11.1]} 37.
Nxe5 {[%clk 0:00:12.7]} 37... Re4+ {[%clk 0:00:10.6]} 38. Kf3 {[%clk 0:00:12.4]}
38... Rxe5 {[%clk 0:00:11.5]} 39. Kf4 {[%clk 0:00:12.3]} 39... Rc5 {[%clk
0:00:10.2]} 40. a3 {[%clk 0:00:10.5]} 40... Ka4 {[%clk 0:00:08.6]} 41. f3 {[%clk
0:00:09.3]} 41... Kb3 {[%clk 0:00:08.5]} 42. h4 {[%clk 0:00:08.3]} 42... Rc4+
{[%clk 0:00:08.4]} 43. Kg5 {[%clk 0:00:08.4]} 43... f4 {[%clk 0:00:08.8]} 44. h5
{[%clk 0:00:08.6]} 44... Rc5+ {[%clk 0:00:09.3]} 45. Kg6 {[%clk 0:00:08.5]}
45... b5 {[%clk 0:00:08.6]} 46. h6 {[%clk 0:00:08.5]} 46... Rc6+ {[%clk
0:00:08.9]} 47. Kg5 {[%clk 0:00:08.6]} 47... Rc5+ {[%clk 0:00:08.7]} 48. Kxf4
{[%clk 0:00:08.5]} 48... Rh5 {[%clk 0:00:09.2]} 49. Rd6 {[%clk 0:00:07.5]} 49...
Kxb2 {[%clk 0:00:08.5]} 50. Kg4 {[%clk 0:00:07.7]} 50... Rh1 {[%clk 0:00:08]}
51. Rd5 {[%clk 0:00:06.3]} 51... a6 {[%clk 0:00:07.4]} 52. Rh5 {[%clk
0:00:04.5]} 52... Rg1+ {[%clk 0:00:05.6]} 53. Kf4 {[%clk 0:00:04.7]} 53... Rg8
{[%clk 0:00:03.8]} 54. h7 {[%clk 0:00:04.9]} 54... Rh8 {[%clk 0:00:04.4]} 55.
Kg5 {[%clk 0:00:02.7]} 55... Kxa3 {[%clk 0:00:04.9]} 56. Kg6 {[%clk 0:00:03]}
56... b4 {[%clk 0:00:05.3]} 57. Kg7 {[%clk 0:00:02.3]} 57... Rxh7+ {[%clk
0:00:02.2]} 0-1

[Event "*** Titled Tuesday Blitz"]
[Site "Chess.com"]
[Date "2020.11.24"]
[Round "6"]
[White "Brave_spirit12"]
[Black "oskariot"]
[Result "1-0"]
[WhiteElo "2508"]
[BlackElo "2627"]
[TimeControl "180+1"]
[EndTime "11:23:43 PST"]
[Termination "Brave_spirit12 won by resignation"]

1. e4 {[%clk 0:03:00.9]} 1... c5 {[%clk 0:02:59.4]} 2. c3 {[%clk 0:03:00.1]}
2... Nc6 {[%clk 0:02:59]} 3. d4 {[%clk 0:02:59.2]} 3... cxd4 {[%clk 0:02:59.9]}
4. cxd4 {[%clk 0:03:00.1]} 4... d5 {[%clk 0:03:00.8]} 5. exd5 {[%clk 0:03:00.3]}
5... Qxd5 {[%clk 0:03:01.7]} 6. Nf3 {[%clk 0:03:01]} 6... e6 {[%clk 0:03:01.4]}
7. Be2 {[%clk 0:02:59.3]} 7... Bb4+ {[%clk 0:03:00.9]} 8. Nc3 {[%clk 0:02:59]}
8... Nf6 {[%clk 0:03:00.7]} 9. O-O {[%clk 0:02:59.2]} 9... Bxc3 {[%clk
0:03:00.9]} 10. bxc3 {[%clk 0:03:00.1]} 10... O-O {[%clk 0:03:01.6]} 11. c4
{[%clk 0:02:58.1]} 11... Qd7 {[%clk 0:03:01.5]} 12. Bf4 {[%clk 0:02:57.7]} 12...
b6 {[%clk 0:02:58.5]} 13. Ne5 {[%clk 0:02:54.8]} 13... Nxe5 {[%clk 0:02:50.7]}
14. dxe5 {[%clk 0:02:54.5]} 14... Qxd1 {[%clk 0:02:50.7]} 15. Rfxd1 {[%clk
0:02:55.4]} 15... Nd7 {[%clk 0:02:50.9]} 16. a4 {[%clk 0:02:35.6]} 16... Nc5
{[%clk 0:02:40.5]} 17. a5 {[%clk 0:02:10.3]} 17... Nb3 {[%clk 0:02:32.3]} 18.
axb6 {[%clk 0:01:54.5]} 18... Nxa1 {[%clk 0:02:31.4]} 19. Rxa1 {[%clk
0:01:49.4]} 19... Bb7 {[%clk 0:02:23.8]} 20. bxa7 {[%clk 0:01:47.8]} 20... Rfc8
{[%clk 0:02:23.7]} 21. Be3 {[%clk 0:01:45.6]} 21... Rc7 {[%clk 0:02:01.5]} 22.
Rb1 {[%clk 0:01:39]} 22... f6 {[%clk 0:01:54.6]} 23. f4 {[%clk 0:01:33.5]} 23...
Kf7 {[%clk 0:01:51.4]} 24. Kf2 {[%clk 0:01:27.9]} 24... h6 {[%clk 0:01:30.4]}
25. h4 {[%clk 0:01:04.6]} 25... f5 {[%clk 0:01:09.9]} 26. h5 {[%clk 0:00:59.6]}
26... g6 {[%clk 0:00:59.1]} 27. hxg6+ {[%clk 0:01:00.5]} 27... Kxg6 {[%clk
0:00:59.9]} 28. Bb6 {[%clk 0:00:52.2]} 28... Rd7 {[%clk 0:00:46.3]} 29. Be3
{[%clk 0:00:49.4]} 29... Be4 {[%clk 0:00:42.8]} 30. Rb6 {[%clk 0:00:45.8]} 30...
Kf7 {[%clk 0:00:37.6]} 31. Rb8 {[%clk 0:00:39.1]} 31... Raxa7 {[%clk 0:00:37.7]}
32. Bxa7 {[%clk 0:00:30.3]} 32... Rxa7 {[%clk 0:00:38.6]} 33. Rc8 {[%clk
0:00:28]} 33... Ra2 {[%clk 0:00:32.1]} 34. Ke3 {[%clk 0:00:20.7]} 34... Bxg2
{[%clk 0:00:31.4]} 35. Bh5+ {[%clk 0:00:20.6]} 35... Ke7 {[%clk 0:00:30.5]} 36.
Kd4 {[%clk 0:00:15.1]} 36... Rf2 {[%clk 0:00:22.2]} 37. Ke3 {[%clk 0:00:11.6]}
37... Rc2 {[%clk 0:00:20.4]} 38. Kd4 {[%clk 0:00:10.9]} 38... Bf1 {[%clk
0:00:16.2]} 39. c5 {[%clk 0:00:06.6]} 39... Kd7 {[%clk 0:00:11.7]} 40. Rh8
{[%clk 0:00:04.1]} 40... Rc4+ {[%clk 0:00:11.8]} 41. Ke3 {[%clk 0:00:04.7]}
41... Rxc5 {[%clk 0:00:10.1]} 42. Rh7+ {[%clk 0:00:05.3]} 42... Kc6 {[%clk
0:00:07.3]} 43. Be8+ {[%clk 0:00:05.2]} 43... Kb6 {[%clk 0:00:06.6]} 44. Rxh6
{[%clk 0:00:06.1]} 44... Bc4 {[%clk 0:00:07.2]} 45. Bf7 {[%clk 0:00:05.4]} 45...
Rc6 {[%clk 0:00:06.6]} 46. Kd4 {[%clk 0:00:05.6]} 46... Bd5 {[%clk 0:00:06.7]}
47. Rf6 {[%clk 0:00:04.4]} 47... Rc4+ {[%clk 0:00:06.7]} 48. Ke3 {[%clk
0:00:04]} 48... Rc6 {[%clk 0:00:06.3]} 49. Kd4 {[%clk 0:00:03.5]} 49... Ka5
{[%clk 0:00:05.8]} 50. Rxf5 {[%clk 0:00:02.4]} 50... Rc4+ {[%clk 0:00:04]} 51.
Ke3 {[%clk 0:00:02.7]} 51... exf5 {[%clk 0:00:03.5]} 52. Bxd5 {[%clk 0:00:03.6]}
52... Rb4 {[%clk 0:00:03.6]} 53. e6 {[%clk 0:00:03.8]} 53... Kb6 {[%clk
0:00:04.1]} 54. e7 {[%clk 0:00:04]} 54... Rb1 {[%clk 0:00:04.7]} 55. Bc4 {[%clk
0:00:02.6]} 55... Re1+ {[%clk 0:00:04.8]} 56. Be2 {[%clk 0:00:03.1]} 56... Rc1
{[%clk 0:00:03.3]} 57. e8=Q {[%clk 0:00:03.2]} 57... Rc3+ {[%clk 0:00:04]} 58.
Kf2 {[%clk 0:00:03.8]} 58... Kc5 {[%clk 0:00:04.9]} 59. Qe5+ {[%clk 0:00:04.1]}
59... Kb4 {[%clk 0:00:05.8]} 60. Qxc3+ {[%clk 0:00:03.8]} 60... Kxc3 {[%clk
0:00:06]} 61. Ke3 {[%clk 0:00:04.4]} 1-0

[Event "*** Titled Tuesday Blitz"]
[Site "Chess.com"]
[Date "2020.11.24"]
[Round "6"]
[White "keepitcool9499"]
[Black "sunofadawn"]
[Result "1-0"]
[WhiteElo "2625"]
[BlackElo "2489"]
[TimeControl "180+1"]
[EndTime "11:23:46 PST"]
[Termination "keepitcool9499 won by checkmate"]

1. d4 {[%clk 0:03:00.9]} 1... Nf6 {[%clk 0:02:59.6]} 2. c4 {[%clk 0:03:01]} 2...
g6 {[%clk 0:02:59.7]} 3. Nc3 {[%clk 0:03:01.4]} 3... d5 {[%clk 0:02:58.4]} 4.
Nf3 {[%clk 0:03:01.2]} 4... Bg7 {[%clk 0:02:57.3]} 5. e3 {[%clk 0:03:01.4]} 5...
c5 {[%clk 0:02:49.2]} 6. dxc5 {[%clk 0:02:42.4]} 6... O-O {[%clk 0:02:48.8]} 7.
cxd5 {[%clk 0:02:40.3]} 7... Qa5 {[%clk 0:02:47]} 8. Bd2 {[%clk 0:02:31.3]} 8...
Qxc5 {[%clk 0:02:46.6]} 9. Qb3 {[%clk 0:02:30.6]} 9... a5 {[%clk 0:02:39.8]} 10.
Be2 {[%clk 0:02:24.9]} 10... a4 {[%clk 0:02:37.7]} 11. Nxa4 {[%clk 0:02:21.2]}
11... Qxd5 {[%clk 0:02:38]} 12. Bc4 {[%clk 0:02:08.5]} 12... Qh5 {[%clk
0:02:37.5]} 13. O-O {[%clk 0:01:56.6]} 13... Nc6 {[%clk 0:02:36.6]} 14. Bc3
{[%clk 0:01:51.6]} 14... Bg4 {[%clk 0:02:33.1]} 15. Be2 {[%clk 0:01:48.4]} 15...
Be6 {[%clk 0:02:27.3]} 16. Qxb7 {[%clk 0:01:43.8]} 16... Bd5 {[%clk 0:02:18.4]}
17. b3 {[%clk 0:01:34.9]} 17... Ng4 {[%clk 0:02:10.1]} 18. Qc7 {[%clk
0:01:32.8]} 18... Rxa4 {[%clk 0:01:50.9]} 19. Bxg7 {[%clk 0:01:29]} 19... Ra7
{[%clk 0:01:50.7]} 20. Qg3 {[%clk 0:01:18.3]} 20... Kxg7 {[%clk 0:01:49.8]} 21.
Nd4 {[%clk 0:01:05]} 21... Nxd4 {[%clk 0:01:46.3]} 22. exd4 {[%clk 0:01:05.9]}
22... f5 {[%clk 0:01:39.1]} 23. h3 {[%clk 0:01:03.2]} 23... Qg5 {[%clk
0:01:31.3]} 24. hxg4 {[%clk 0:01:00.8]} 24... f4 {[%clk 0:01:31.9]} 25. Qh3
{[%clk 0:00:53.2]} 25... Rc8 {[%clk 0:01:31.2]} 26. Bf3 {[%clk 0:00:45.4]} 26...
Bf7 {[%clk 0:01:30.2]} 27. Rfe1 {[%clk 0:00:40.7]} 27... Rc3 {[%clk 0:01:26.3]}
28. Re5 {[%clk 0:00:37.2]} 28... Qf6 {[%clk 0:01:22.6]} 29. g5 {[%clk
0:00:37.6]} 29... Qd6 {[%clk 0:01:22.9]} 30. Qh6+ {[%clk 0:00:29.8]} 30... Kg8
{[%clk 0:01:21.2]} 31. Rae1 {[%clk 0:00:26.7]} 31... Rcc7 {[%clk 0:01:14.2]} 32.
R1e4 {[%clk 0:00:15.8]} 32... Rxa2 {[%clk 0:01:13.7]} 33. Rxf4 {[%clk
0:00:12.4]} 33... Ra1+ {[%clk 0:01:11.3]} 34. Kh2 {[%clk 0:00:11.1]} 34... Rcc1
{[%clk 0:01:10.9]} 35. g3 {[%clk 0:00:06.6]} 35... Rf1 {[%clk 0:01:06.7]} 36.
Bg2 {[%clk 0:00:04.8]} 36... Rxf2 {[%clk 0:01:04.2]} 37. Rxf2 {[%clk 0:00:04]}
37... Qxd4 {[%clk 0:01:02.4]} 38. Rxf7 {[%clk 0:00:04.3]} 38... Kxf7 {[%clk
0:00:54.9]} 39. Qxh7+ {[%clk 0:00:04]} 39... Ke8 {[%clk 0:00:53.1]} 40. Qh8+
{[%clk 0:00:03.9]} 40... Kf7 {[%clk 0:00:50.2]} 41. Rxe7+ {[%clk 0:00:04.4]}
41... Kxe7 {[%clk 0:00:49.8]} 42. Qxd4 {[%clk 0:00:05]} 42... Ra5 {[%clk
0:00:50]} 43. Qe4+ {[%clk 0:00:05.1]} 43... Kf7 {[%clk 0:00:49]} 44. Qc4+ {[%clk
0:00:04.9]} 44... Ke8 {[%clk 0:00:45.9]} 45. Bc6+ {[%clk 0:00:03.8]} 45... Kd8
{[%clk 0:00:43.3]} 46. Bg2 {[%clk 0:00:03.2]} 46... Rxg5 {[%clk 0:00:41.1]} 47.
Qd5+ {[%clk 0:00:04.1]} 47... Rxd5 {[%clk 0:00:37.2]} 48. Bxd5 {[%clk 0:00:05]}
48... Kc7 {[%clk 0:00:38.1]} 49. Be4 {[%clk 0:00:05.9]} 49... Kd6 {[%clk
0:00:39]} 50. Bxg6 {[%clk 0:00:05.8]} 50... Kc5 {[%clk 0:00:39.9]} 51. Bf7
{[%clk 0:00:06.3]} 51... Kb4 {[%clk 0:00:40.8]} 52. Bc4 {[%clk 0:00:06.9]} 52...
Kc5 {[%clk 0:00:41.4]} 53. g4 {[%clk 0:00:07.8]} 53... Kd6 {[%clk 0:00:42.2]}
54. Kg3 {[%clk 0:00:08.7]} 54... Ke7 {[%clk 0:00:42.8]} 55. Kf4 {[%clk
0:00:09.6]} 55... Kf6 {[%clk 0:00:43.5]} 56. g5+ {[%clk 0:00:10.5]} 56... Ke7
{[%clk 0:00:44.2]} 57. Kf5 {[%clk 0:00:11.4]} 57... Kd6 {[%clk 0:00:44.5]} 58.
g6 {[%clk 0:00:12.3]} 58... Kc5 {[%clk 0:00:45.4]} 59. Kg5 {[%clk 0:00:13.2]}
59... Kb4 {[%clk 0:00:46.3]} 60. Kf6 {[%clk 0:00:14.1]} 60... Kc3 {[%clk
0:00:47.2]} 61. g7 {[%clk 0:00:14.8]} 61... Kb2 {[%clk 0:00:48.1]} 62. Kf7
{[%clk 0:00:15.7]} 62... Ka3 {[%clk 0:00:49]} 63. g8=Q {[%clk 0:00:16.3]} 63...
Kb4 {[%clk 0:00:49.9]} 64. Qg7 {[%clk 0:00:16.7]} 64... Ka3 {[%clk 0:00:50]} 65.
Qf8+ {[%clk 0:00:16.8]} 65... Kb2 {[%clk 0:00:50.1]} 66. b4 {[%clk 0:00:17.1]}
66... Kc3 {[%clk 0:00:50.9]} 67. b5 {[%clk 0:00:17.1]} 67... Kd4 {[%clk
0:00:51.4]} 68. b6 {[%clk 0:00:17.1]} 68... Ke5 {[%clk 0:00:52.3]} 69. Qe7+
{[%clk 0:00:16.2]} 69... Kd4 {[%clk 0:00:52.1]} 70. Be6 {[%clk 0:00:16]} 70...
Ke5 {[%clk 0:00:52]} 71. Bd7+ {[%clk 0:00:16.2]} 71... Kd5 {[%clk 0:00:50.9]}
72. Be8 {[%clk 0:00:16.6]} 72... Kc4 {[%clk 0:00:50.7]} 73. Qc7+ {[%clk
0:00:17.1]} 73... Kd5 {[%clk 0:00:50]} 74. Ke7 {[%clk 0:00:16.2]} 74... Ke4
{[%clk 0:00:50.7]} 75. Kd7 {[%clk 0:00:16.6]} 75... Kf5 {[%clk 0:00:51.4]} 76.
Ke7 {[%clk 0:00:15.8]} 76... Ke4 {[%clk 0:00:51.1]} 77. Qc5 {[%clk 0:00:15.1]}
77... Kf4 {[%clk 0:00:50.9]} 78. b7 {[%clk 0:00:15.5]} 78... Ke4 {[%clk
0:00:50.5]} 79. b8=Q {[%clk 0:00:14.9]} 79... Kd3 {[%clk 0:00:50.9]} 80. Qb3+
{[%clk 0:00:15.2]} 80... Ke4 {[%clk 0:00:51.4]} 81. Qbd5+ {[%clk 0:00:14.4]}
81... Kf4 {[%clk 0:00:49.8]} 82. Qcc4+ {[%clk 0:00:14.8]} 82... Kg3 {[%clk
0:00:49.3]} 83. Qdd3+ {[%clk 0:00:15.7]} 83... Kf2 {[%clk 0:00:49.2]} 84. Qcc2+
{[%clk 0:00:16.6]} 84... Ke1 {[%clk 0:00:49.1]} 85. Qdd1# {[%clk 0:00:17.5]} 1-0

[Event "*** Titled Tuesday Blitz"]
[Site "Chess.com"]
[Date "2020.11.24"]
[Round "6"]
[White "Tpros"]
[Black "JoachimMouhamad"]
[Result "1-0"]
[WhiteElo "2599"]
[BlackElo "2467"]
[TimeControl "180+1"]
[EndTime "11:23:47 PST"]
[Termination "Tpros won by resignation"]

1. e4 {[%clk 0:02:49.8]} 1... e5 {[%clk 0:02:59.8]} 2. Nf3 {[%clk 0:02:49.3]}
2... Nc6 {[%clk 0:02:59.9]} 3. Bb5 {[%clk 0:02:49.6]} 3... a6 {[%clk 0:03:00.1]}
4. Bxc6 {[%clk 0:02:50]} 4... dxc6 {[%clk 0:03:00]} 5. Nc3 {[%clk 0:02:50.9]}
5... f6 {[%clk 0:02:50.3]} 6. d4 {[%clk 0:02:50.9]} 6... exd4 {[%clk 0:02:49.5]}
7. Nxd4 {[%clk 0:02:51.8]} 7... c5 {[%clk 0:02:43.7]} 8. Nde2 {[%clk 0:02:52.1]}
8... Qxd1+ {[%clk 0:02:37.6]} 9. Nxd1 {[%clk 0:02:53]} 9... Be6 {[%clk
0:02:35.2]} 10. Bf4 {[%clk 0:02:52.8]} 10... O-O-O {[%clk 0:02:34.3]} 11. h4
{[%clk 0:02:52.6]} 11... Ne7 {[%clk 0:02:31.7]} 12. h5 {[%clk 0:02:52.4]} 12...
Nc6 {[%clk 0:02:29.5]} 13. Ne3 {[%clk 0:02:52.3]} 13... Nd4 {[%clk 0:02:24.2]}
14. f3 {[%clk 0:02:52.2]} 14... Be7 {[%clk 0:02:16.7]} 15. Nc3 {[%clk
0:02:45.6]} 15... Rd7 {[%clk 0:02:08.7]} 16. O-O-O {[%clk 0:02:44.5]} 16... b6
{[%clk 0:02:04.7]} 17. Rd2 {[%clk 0:02:37.8]} 17... a5 {[%clk 0:01:57.9]} 18. a4
{[%clk 0:02:36]} 18... Rhd8 {[%clk 0:01:56.6]} 19. Rhd1 {[%clk 0:02:34.4]} 19...
g5 {[%clk 0:01:51.4]} 20. hxg6 {[%clk 0:02:33.9]} 20... hxg6 {[%clk 0:01:51.4]}
21. Ncd5 {[%clk 0:02:17.9]} 21... g5 {[%clk 0:01:40.6]} 22. Bh2 {[%clk
0:01:42.9]} 22... Rh8 {[%clk 0:01:39.8]} 23. Bg3 {[%clk 0:01:33.3]} 23... Bd8
{[%clk 0:01:40]} 24. Kb1 {[%clk 0:01:08.5]} 24... Rdh7 {[%clk 0:01:39.6]} 25. b3
{[%clk 0:01:05.1]} 25... Rh1 {[%clk 0:01:38.6]} 26. Kb2 {[%clk 0:01:05.4]} 26...
Rxd1 {[%clk 0:01:36.4]} 27. Rxd1 {[%clk 0:01:06.3]} 27... Ne2 {[%clk 0:01:30.7]}
28. Bf2 {[%clk 0:01:06.4]} 28... Nf4 {[%clk 0:01:17.8]} 29. Bg3 {[%clk
0:01:01.7]} 29... Nxd5 {[%clk 0:00:51.5]} 30. Nxd5 {[%clk 0:00:57.2]} 30... f5
{[%clk 0:00:49.7]} 31. Be5 {[%clk 0:00:57.4]} 31... Rf8 {[%clk 0:00:43.2]} 32.
Nc3 {[%clk 0:00:53.6]} 32... Bf6 {[%clk 0:00:38.8]} 33. Bxf6 {[%clk 0:00:52.7]}
33... Rxf6 {[%clk 0:00:39.7]} 34. Rh1 {[%clk 0:00:48.1]} 34... Rf7 {[%clk
0:00:33.8]} 35. e5 {[%clk 0:00:42.5]} 35... f4 {[%clk 0:00:30.2]} 36. Rh5 {[%clk
0:00:38.6]} 36... g4 {[%clk 0:00:30.1]} 37. Kc1 {[%clk 0:00:31.3]} 37... gxf3
{[%clk 0:00:30.2]} 38. gxf3 {[%clk 0:00:32.2]} 38... Rf5 {[%clk 0:00:31]} 39.
Rxf5 {[%clk 0:00:24.3]} 39... Bxf5 {[%clk 0:00:31.9]} 40. Ne2 {[%clk 0:00:23.8]}
40... Kd7 {[%clk 0:00:23.9]} 41. Nxf4 {[%clk 0:00:23.9]} 41... c4 {[%clk
0:00:17.3]} 42. bxc4 {[%clk 0:00:20.3]} 42... Ke7 {[%clk 0:00:17.6]} 43. Kb2
{[%clk 0:00:19]} 43... Bd7 {[%clk 0:00:18.1]} 44. Kb3 {[%clk 0:00:19.2]} 44...
Bc6 {[%clk 0:00:18.4]} 45. Nd5+ {[%clk 0:00:19.6]} 45... Ke6 {[%clk 0:00:18.4]}
46. f4 {[%clk 0:00:17.9]} 46... Kd7 {[%clk 0:00:16]} 47. f5 {[%clk 0:00:15.8]}
47... Bb7 {[%clk 0:00:13.8]} 48. Kc3 {[%clk 0:00:15.1]} 48... c5 {[%clk
0:00:11.8]} 49. Nxb6+ {[%clk 0:00:09.3]} 49... Ke7 {[%clk 0:00:11.2]} 50. Nd5+
{[%clk 0:00:09.1]} 50... Kd8 {[%clk 0:00:10.8]} 51. Kd3 {[%clk 0:00:09.1]} 51...
Bc6 {[%clk 0:00:09.9]} 52. Nc3 {[%clk 0:00:08.5]} 52... Ke7 {[%clk 0:00:09.7]}
53. Ke3 {[%clk 0:00:08.8]} 53... Kd8 {[%clk 0:00:09.6]} 54. Kf4 {[%clk
0:00:08.9]} 54... Ke7 {[%clk 0:00:10.5]} 55. Kg5 {[%clk 0:00:09.1]} 55... Kd8
{[%clk 0:00:11.4]} 56. Kf6 {[%clk 0:00:09]} 56... Ke8 {[%clk 0:00:11.8]} 57. Ke6
{[%clk 0:00:09.3]} 57... Kd8 {[%clk 0:00:12.2]} 58. Kd6 {[%clk 0:00:09.7]} 58...
Bf3 {[%clk 0:00:11.8]} 59. Kxc5 {[%clk 0:00:06.2]} 59... Bh5 {[%clk 0:00:12.7]}
60. Kd6 {[%clk 0:00:06.1]} 60... Be8 {[%clk 0:00:13.6]} 61. f6 {[%clk 0:00:06]}
61... Bh5 {[%clk 0:00:14.5]} 62. e6 {[%clk 0:00:06.5]} 62... Be8 {[%clk
0:00:15.1]} 63. f7 {[%clk 0:00:06.9]} 63... Bxf7 {[%clk 0:00:15.5]} 64. exf7
{[%clk 0:00:07.4]} 64... Kc8 {[%clk 0:00:16.4]} 65. f8=Q+ {[%clk 0:00:07.9]}
65... Kb7 {[%clk 0:00:17.3]} 66. Qf3+ {[%clk 0:00:08]} 1-0

[Event "*** Titled Tuesday Blitz"]
[Site "Chess.com"]
[Date "2020.11.24"]
[Round "6"]
[White "tdf98pantani"]
[Black "IMAghasiyevKamal"]
[Result "1-0"]
[WhiteElo "2721"]
[BlackElo "2565"]
[TimeControl "180+1"]
[EndTime "11:23:49 PST"]
[Termination "tdf98pantani won by resignation"]

1. e4 {[%clk 0:03:00.9]} 1... e5 {[%clk 0:02:59.7]} 2. Nf3 {[%clk 0:03:00.8]}
2... Nc6 {[%clk 0:02:59.9]} 3. Bc4 {[%clk 0:03:00.9]} 3... Bc5 {[%clk
0:02:59.4]} 4. c3 {[%clk 0:03:00.9]} 4... Nf6 {[%clk 0:02:58.5]} 5. d3 {[%clk
0:03:01]} 5... a6 {[%clk 0:02:58.1]} 6. O-O {[%clk 0:02:58.8]} 6... d6 {[%clk
0:02:54.9]} 7. a4 {[%clk 0:02:56.9]} 7... Ba7 {[%clk 0:02:51.7]} 8. Nbd2 {[%clk
0:02:55.7]} 8... Ne7 {[%clk 0:02:44.7]} 9. Re1 {[%clk 0:02:50.6]} 9... Ng6
{[%clk 0:02:44.3]} 10. Nf1 {[%clk 0:02:50.7]} 10... O-O {[%clk 0:02:43.6]} 11.
Ng3 {[%clk 0:02:50.5]} 11... Be6 {[%clk 0:02:43.7]} 12. Bxe6 {[%clk 0:02:46.2]}
12... fxe6 {[%clk 0:02:43.9]} 13. Qb3 {[%clk 0:02:43.2]} 13... Qd7 {[%clk
0:02:41.7]} 14. d4 {[%clk 0:02:42.6]} 14... b5 {[%clk 0:02:26.8]} 15. axb5
{[%clk 0:02:40.1]} 15... axb5 {[%clk 0:02:26.6]} 16. h3 {[%clk 0:02:27.2]} 16...
c5 {[%clk 0:02:17.1]} 17. dxe5 {[%clk 0:02:25]} 17... c4 {[%clk 0:02:11.9]} 18.
Qc2 {[%clk 0:02:12.2]} 18... Nxe5 {[%clk 0:01:53.4]} 19. Nxe5 {[%clk 0:02:11.6]}
19... dxe5 {[%clk 0:01:53]} 20. Rb1 {[%clk 0:01:24.7]} 20... Ng4 {[%clk
0:01:45.2]} 21. hxg4 {[%clk 0:01:23.4]} 21... Rxf2 {[%clk 0:01:44.7]} 22. Qxf2
{[%clk 0:01:22.1]} 22... Bxf2+ {[%clk 0:01:44.7]} 23. Kxf2 {[%clk 0:01:23]}
23... Ra2 {[%clk 0:01:12.8]} 24. Be3 {[%clk 0:01:19.8]} 24... Qd3 {[%clk
0:01:10.3]} 25. Kg1 {[%clk 0:01:13.5]} 25... Qc2 {[%clk 0:01:08.5]} 26. Rec1
{[%clk 0:01:09.9]} 26... Qb3 {[%clk 0:01:04.1]} 27. Rf1 {[%clk 0:00:57.7]} 27...
Rxb2 {[%clk 0:01:00.9]} 28. Rbd1 {[%clk 0:00:58.2]} 28... h6 {[%clk 0:00:58.2]}
29. Rd8+ {[%clk 0:00:57.1]} 29... Kh7 {[%clk 0:00:57.9]} 30. Rd7 {[%clk
0:00:53.3]} 30... Qxc3 {[%clk 0:00:50.9]} 31. Rf3 {[%clk 0:00:48.6]} 31... Qc2
{[%clk 0:00:45.2]} 32. Bf2 {[%clk 0:00:44.4]} 32... Rb1+ {[%clk 0:00:44]} 33.
Kh2 {[%clk 0:00:44.7]} 33... Rd1 {[%clk 0:00:43.4]} 34. Rb7 {[%clk 0:00:41.7]}
34... Rd2 {[%clk 0:00:38.5]} 35. Rbf7 {[%clk 0:00:30.4]} 35... Rd3 {[%clk
0:00:24.4]} 36. Rxd3 {[%clk 0:00:24.3]} 36... cxd3 {[%clk 0:00:22]} 37. Nh5
{[%clk 0:00:24.7]} 37... d2 {[%clk 0:00:21]} 38. Rxg7+ {[%clk 0:00:24.4]} 38...
Kh8 {[%clk 0:00:21.3]} 39. Rf7 {[%clk 0:00:18.9]} 39... d1=Q {[%clk 0:00:14.9]}
40. Nf6 {[%clk 0:00:19]} 40... Qxe4 {[%clk 0:00:11.6]} 41. Nxe4 {[%clk
0:00:18.8]} 41... Qxg4 {[%clk 0:00:11.2]} 42. Nf6 {[%clk 0:00:16.9]} 42... Qf4+
{[%clk 0:00:11.2]} 43. Bg3 {[%clk 0:00:17]} 43... Qf5 {[%clk 0:00:11.4]} 44. Kg1
{[%clk 0:00:11.4]} 44... e4 {[%clk 0:00:11]} 45. Be5 {[%clk 0:00:10.7]} 45... b4
{[%clk 0:00:09.5]} 46. Rf8+ {[%clk 0:00:08.8]} 46... Kg7 {[%clk 0:00:09.8]} 47.
Nd7+ {[%clk 0:00:09.3]} 47... Qxe5 {[%clk 0:00:08]} 48. Nxe5 {[%clk 0:00:08.4]}
48... Kxf8 {[%clk 0:00:08.5]} 49. Kf2 {[%clk 0:00:08.8]} 49... Ke7 {[%clk
0:00:09]} 50. Ke3 {[%clk 0:00:09.1]} 50... Kd6 {[%clk 0:00:09.9]} 51. Kxe4
{[%clk 0:00:09.5]} 51... b3 {[%clk 0:00:10.1]} 52. Nd3 {[%clk 0:00:08.9]} 52...
e5 {[%clk 0:00:09.3]} 53. Nxe5 {[%clk 0:00:08.4]} 53... Kc5 {[%clk 0:00:07.5]}
54. Nd3+ {[%clk 0:00:08.5]} 54... Kc4 {[%clk 0:00:07.9]} 55. Nb2+ {[%clk
0:00:07.9]} 55... Kc3 {[%clk 0:00:07.9]} 56. Na4+ {[%clk 0:00:07.6]} 56... Kb4
{[%clk 0:00:08.3]} 57. Nb2 {[%clk 0:00:07.3]} 57... Kc3 {[%clk 0:00:08.8]} 58.
Nd3 {[%clk 0:00:07.8]} 58... h5 {[%clk 0:00:03.5]} 59. Nc5 {[%clk 0:00:07.6]}
59... Kc4 {[%clk 0:00:01.4]} 60. Nxb3 {[%clk 0:00:07.7]} 60... Kxb3 {[%clk
0:00:02.3]} 61. Kf4 {[%clk 0:00:08.6]} 61... Kc3 {[%clk 0:00:03.2]} 62. Kg5
{[%clk 0:00:09.1]} 62... Kd4 {[%clk 0:00:03.9]} 63. Kxh5 {[%clk 0:00:09.5]}
63... Ke4 {[%clk 0:00:04.8]} 64. g4 {[%clk 0:00:09]} 1-0